bitfinex/quotes_SOLUSD_20230105
["timestamp","ask_amount","ask_price","bid_price","bid_amount"]
[1672929675511,20.0,13.103,13.099,75.7994933]
[1672929675512,20.0,13.101,13.099,75.7994933]
[1672929675742,20.0,13.099,13.091,117.6527]
[1672929675971,20.0,13.097,13.09,25.5274]
[1672929676164,57.31,13.096,13.09,25.5274]
[1672929676385,37.0,13.095,13.09,25.5274]
[1672929676698,77.3,13.099,13.09,25.5274]
[1672929676917,57.29,13.102,13.09,25.5274]
[1672929677147,110.8505,13.106,13.09,25.5274]
[1672929677148,17.0,13.101,13.09,25.5274]
[1672929677434,22.41737149,13.102,13.09,25.5274]
[1672929677745,39.72,13.1,13.09,25.5274]
[1672929678174,20.0,13.099,13.091,20.0]
[1672929678592,17.0,13.098,13.09,25.5274]
[1672929679001,39.41737149,13.098,13.09,25.5274]
[1672929679266,20.0,13.097,13.09,25.5274]
[1672929679539,20.0,13.095,13.09,25.5274]
[1672929679631,17.0,13.094,13.09,25.5274]
[1672929683950,20.0,13.095,13.09,25.5274]
[1672929684166,20.0,13.097,13.09,25.5274]
[1672929684474,39.76,13.1,13.091,28.992]
[1672929684688,177.2173,13.104,13.091,28.992]
[1672929684892,199.63467149,13.104,13.091,28.992]
[1672929685096,20.0,13.103,13.091,28.992]
[1672929686165,42.41737149,13.103,13.091,28.992]
[1672929686392,20.0,13.101,13.091,28.992]
[1672929686686,56.72,13.1,13.091,28.992]
[1672929687219,39.72,13.1,13.091,28.992]
[1672929687531,20.0,13.101,13.091,28.992]
[1672929688243,20.0,13.102,13.091,28.992]
[1672929688661,42.41737149,13.103,13.091,28.992]
[1672929690441,39.45,13.1,13.091,28.992]
[1672929690766,20.0,13.099,13.091,28.992]
[1672929690977,17.0,13.098,13.091,28.992]
[1672929691283,17.0,13.098,13.091,8.992]
[1672929691284,20.0,13.097,13.091,8.992]
[1672929691495,74.31,13.096,13.091,8.992]
[1672929691691,39.41737149,13.096,13.091,8.992]
[1672929691905,20.0,13.095,13.091,8.992]
[1672929692113,17.0,13.094,13.091,8.992]
[1672929692972,79.72737149,13.098,13.091,8.992]
[1672929693277,22.41737149,13.098,13.091,8.992]
[1672929693491,77.31,13.097,13.09,25.5274]
[1672929693897,99.72737149,13.097,13.09,25.5274]
[1672929694129,20.0,13.096,13.09,25.5274]
[1672929694313,17.0,13.095,13.09,25.5274]
[1672929694534,39.41737149,13.095,13.09,25.5274]
[1672929694744,79.73737149,13.094,13.09,0.0074]
[1672929694951,17.0,13.093,13.09,0.0074]
[1672929695173,57.33,13.092,13.09,0.0074]
[1672929695376,37.0,13.091,13.09,0.0074]
[1672929695786,116.75737149,13.091,13.09,0.0074]
[1672929696001,59.41737149,13.091,13.09,0.0074]
[1672929696211,20.0,13.09,13.083,68.4865865]
[1672929696421,59.45,13.09,13.083,68.4865865]
[1672929697258,81.86737149,13.09,13.083,68.4865865]
[1672929697483,139.20737149,13.09,13.083,68.4865865]
[1672929697899,297.80737149,13.09,13.083,68.4865865]
[1672929698321,17.0,13.089,13.083,68.4865865]
[1672929698524,57.35,13.088,13.083,68.4865865]
[1672929698738,20.0,13.086,13.083,68.4865865]
[1672929698945,17.0,13.085,13.083,68.4865865]
[1672929699366,20.0,13.084,13.083,68.4865865]
[1672929699579,37.0,13.084,13.083,68.4865865]
[1672929700310,20.0,13.084,13.083,68.4865865]
[1672929700522,20.0,13.086,13.083,68.4865865]
[1672929700741,77.35,13.087,13.083,68.4865865]
[1672929701061,22.41737149,13.088,13.083,68.4865865]
[1672929701249,20.0,13.088,13.083,68.4865865]
[1672929701669,17.0,13.087,13.083,68.4865865]
[1672929702104,20.0,13.088,13.083,68.4865865]
[1672929702540,20.0,13.089,13.083,68.4865865]
[1672929702750,22.41737149,13.088,13.083,68.4865865]
[1672929702960,171.4998,13.093,13.083,68.4865865]
[1672929703791,114.1698,13.093,13.083,68.4865865]
[1672929705274,57.32,13.095,13.083,68.4865865]
[1672929705470,129.9609,13.097,13.083,68.4865865]
[1672929705471,57.31,13.096,13.083,68.4865865]
[1672929705801,79.72737149,13.096,13.083,68.4865865]
[1672929706120,42.41737149,13.095,13.083,68.4865865]
[1672929706321,57.32,13.094,13.083,68.4865865]
[1672929706648,20.0,13.093,13.083,63.4865865]
[1672929706837,42.41737149,13.093,13.083,63.4865865]
[1672929707043,17.0,13.092,13.083,63.4865865]
[1672929707263,57.32,13.094,13.083,63.4865865]
[1672929707466,77.32,13.095,13.083,63.4865865]
[1672929707676,20.0,13.095,13.083,63.4865865]
[1672929707899,57.32,13.094,13.083,63.4865865]
[1672929708441,42.41737149,13.095,13.083,63.4865865]
[1672929708942,57.32,13.094,13.083,63.4865865]
[1672929709146,20.0,13.093,13.083,63.4865865]
[1672929709368,17.0,13.092,13.083,63.4865865]
[1672929713189,57.31,13.096,13.083,63.4865865]
[1672929713579,22.41737149,13.097,13.084,20.0]
[1672929713796,39.76,13.1,13.084,20.0]
[1672929714220,59.76,13.1,13.084,20.0]
[1672929714641,20.0,13.099,13.084,20.0]
[1672929715600,22.41737149,13.098,13.084,20.0]
[1672929716017,17.0,13.097,13.084,20.0]
[1672929716342,22.41737149,13.098,13.084,20.0]
[1672929716563,22.41737149,13.097,13.084,20.0]
[1672929717793,57.3,13.099,13.084,20.0]
[1672929718118,39.76,13.1,13.084,20.0]
[1672929718443,22.41737149,13.098,13.084,20.0]
[1672929719487,17.0,13.097,13.084,20.0]
[1672929719806,39.41737149,13.097,13.084,20.0]
[1672929720947,20.0,13.096,13.083,181.1242865]
[1672929721170,17.0,13.095,13.083,181.1242865]
[1672929721383,39.41737149,13.095,13.083,181.1242865]
[1672929721907,39.41737149,13.095,13.084,20.0]
[1672929722533,22.41737149,13.095,13.084,20.0]
[1672929722754,17.0,13.094,13.083,181.1242865]
[1672929722970,20.0,13.093,13.083,181.1242865]
[1672929723482,39.41737149,13.094,13.083,181.1242865]
[1672929724439,22.41737149,13.094,13.083,181.1242865]
[1672929725164,17.0,13.093,13.083,181.1242865]
[1672929725899,22.41737149,13.094,13.083,181.1242865]
[1672929726965,17.0,13.093,13.083,181.1242865]
[1672929727997,37.0,13.093,13.083,181.1242865]
[1672929728824,20.0,13.092,13.083,181.1242865]
[1672929729055,17.0,13.091,13.083,63.4865865]
[1672929729273,39.41737149,13.091,13.083,63.4865865]
[1672929729576,20.0,13.092,13.083,63.4865865]
[1672929729899,17.0,13.091,13.083,63.4865865]
[1672929731584,77.32,13.095,13.083,63.4865865]
[1672929731771,20.0,13.093,13.083,63.4865865]
[1672929732402,42.41737149,13.093,13.083,63.4865865]
[1672929732827,20.0,13.091,13.083,63.4865865]
[1672929733053,56.41,13.09,13.083,63.4865865]
[1672929733247,78.82737149,13.09,13.083,63.4865865]
[1672929733458,22.41737149,13.089,13.083,63.4865865]
[1672929733682,20.0,13.087,13.083,63.4865865]
[1672929733877,17.0,13.086,13.083,63.4865865]
[1672929735151,39.41737149,13.086,13.083,63.4865865]
[1672929735365,20.0,13.085,13.083,63.4865865]
[1672929735560,17.0,13.084,13.083,63.4865865]
[1672929736510,17.0,13.084,13.083,34.4657865]
[1672929736718,17.0,13.084,13.083,0.0057865]
[1672929736932,20.0,13.083,13.08,1.06668545]
[1672929737137,17.0,13.082,13.08,1.06668545]
[1672929739468,20.0,13.083,13.08,1.06668545]
[1672929739665,17.0,13.082,13.08,1.06668545]
[1672929740605,16.0,13.082,13.08,1.06668545]
[1672929742737,20.0,13.084,13.08,1.06668545]
[1672929742928,17.0,13.083,13.08,1.06668545]
[1672929743139,20.0,13.082,13.08,1.06668545]
[1672929743358,17.0,13.081,13.08,1.06668545]
[1672929743557,20.0,13.082,13.08,1.06668545]
[1672929744935,20.0,13.084,13.08,1.06668545]
[1672929745155,77.35,13.088,13.08,1.06668545]
[1672929745363,20.0,13.088,13.08,1.06668545]
[1672929747572,42.41737149,13.088,13.08,1.06668545]
[1672929747761,20.0,13.086,13.08,1.06668545]
[1672929747976,17.0,13.085,13.08,1.06668545]
[1672929748190,20.0,13.084,13.08,1.06668545]
[1672929751771,17.0,13.083,13.08,1.06668545]
[1672929752620,20.0,13.084,13.08,1.06668545]
[1672929753956,17.0,13.083,13.08,1.06668545]
[1672929761337,20.0,13.085,13.08,1.06668545]
[1672929762267,42.41737149,13.085,13.08,1.06668545]
[1672929762593,20.0,13.085,13.08,1.06668545]
[1672929762806,17.0,13.084,13.08,1.06668545]
[1672929763838,74.37,13.084,13.08,1.06668545]
[1672929764056,17.0,13.084,13.08,1.06668545]
[1672929764388,39.41737149,13.084,13.08,1.06668545]
[1672929764909,57.35,13.089,13.08,1.06668545]
[1672929765103,261.6485,13.09,13.08,1.06668545]
[1672929765313,20.0,13.089,13.08,1.06668545]
[1672929766383,17.0,13.088,13.08,1.06668545]
[1672929766598,17.0,13.089,13.08,1.06668545]
[1672929766813,261.6485,13.09,13.08,1.06668545]
[1672929767023,57.33,13.092,13.08,1.06668545]
[1672929767222,22.41737149,13.093,13.08,1.06668545]
[1672929767874,22.41737149,13.093,13.08,21.06668545]
[1672929768071,22.41737149,13.093,13.081,25.293]
[1672929768276,22.41737149,13.093,13.082,20.0]
[1672929768697,17.0,13.092,13.082,20.0]
[1672929769228,22.41737149,13.092,13.082,20.0]
[1672929769442,59.72,13.09,13.08,1.06668545]
[1672929769638,74.35,13.089,13.08,1.06668545]
[1672929769851,96.76737149,13.089,13.08,1.06668545]
[1672929770297,20.0,13.088,13.08,1.06668545]
[1672929770480,17.0,13.087,13.08,1.06668545]
[1672929770691,20.0,13.086,13.08,1.06668545]
[1672929770918,42.41737149,13.086,13.08,1.06668545]
[1672929771109,17.0,13.085,13.08,1.06668545]
[1672929771532,39.41737149,13.085,13.08,1.06668545]
[1672929771743,57.37,13.084,13.08,1.06668545]
[1672929771952,96.77737149,13.085,13.08,1.06668545]
[1672929772167,57.36,13.085,13.08,1.06668545]
[1672929772380,20.0,13.086,13.08,1.06668545]
[1672929772792,42.41737149,13.086,13.08,1.06668545]
[1672929773429,17.0,13.085,13.08,1.06668545]
[1672929774179,74.36,13.085,13.08,1.06668545]
[1672929776075,96.77737149,13.085,13.08,1.06668545]
[1672929776684,74.36,13.085,13.08,1.06668545]
[1672929776896,20.0,13.084,13.08,1.06668545]
[1672929777122,74.37,13.083,13.08,1.06668545]
[1672929777533,20.0,13.082,13.08,1.06668545]
[1672929777741,17.0,13.081,13.08,1.06668545]
[1672929778491,57.37,13.083,13.08,1.06668545]
[1672929778683,37.0,13.082,13.08,1.06668545]
[1672929778895,20.0,13.082,13.08,1.06668545]
[1672929779441,77.37,13.084,13.08,1.06668545]
[1672929779858,20.0,13.084,13.08,1.06668545]
[1672929780064,115.067,13.085,13.08,1.06668545]
[1672929781633,22.41737149,13.086,13.08,1.06668545]
[1672929781960,57.35,13.088,13.08,1.06668545]
[1672929782285,199.06687149,13.093,13.08,48.69067269]
[1672929782495,141.73687149,13.093,13.081,20.0]
[1672929782697,20.0,13.092,13.081,77.84278498]
[1672929783628,99.74737149,13.092,13.081,77.84278498]
[1672929783837,99.74737149,13.092,13.081,20.0]
[1672929784067,99.74737149,13.092,13.08,1.06668545]
[1672929784490,17.0,13.091,13.08,1.06668545]
[1672929784907,20.0,13.089,13.08,1.06668545]
[1672929785105,17.0,13.088,13.08,1.06668545]
[1672929785316,39.41737149,13.088,13.08,1.06668545]
[1672929785519,79.76737149,13.087,13.08,1.06668545]
[1672929785737,20.0,13.085,13.08,1.06668545]
[1672929786587,17.0,13.084,13.08,1.06668545]
[1672929786800,20.0,13.085,13.08,1.06668545]
[1672929787642,20.0,13.086,13.08,1.06668545]
[1672929789219,77.35,13.087,13.08,1.06668545]
[1672929789739,20.0,13.086,13.08,1.06668545]
[1672929790479,57.35,13.087,13.08,1.06668545]
[1672929790882,109.8845,13.088,13.08,1.06668545]
[1672929791097,96.75,13.09,13.08,1.06668545]
[1672929791308,57.34,13.091,13.08,1.06668545]
[1672929791954,79.75737149,13.091,13.08,1.06668545]
[1672929792264,20.0,13.09,13.08,1.06668545]
[1672929792892,22.41737149,13.089,13.08,1.06668545]
[1672929793200,20.0,13.088,13.08,1.06668545]
[1672929793944,17.0,13.087,13.08,1.06668545]
[1672929794263,20.0,13.086,13.08,1.06668545]
[1672929795622,57.35,13.087,13.08,1.06668545]
[1672929796365,57.34,13.089,13.08,1.06668545]
[1672929796568,57.33,13.092,13.08,1.06668545]
[1672929797085,20.0,13.091,13.08,1.06668545]
[1672929797730,57.33,13.092,13.08,1.06668545]
[1672929798136,57.33,13.092,13.08,21.06668545]
[1672929798350,20.0,13.095,13.081,20.0]
[1672929800863,42.41737149,13.095,13.08,1.06668545]
[1672929801073,20.0,13.093,13.08,1.06668545]
[1672929803505,17.0,13.092,13.08,1.06668545]
[1672929803817,39.72,13.09,13.08,1.06668545]
[1672929804039,57.34,13.089,13.08,1.06668545]
[1672929804233,17.0,13.088,13.08,1.06668545]
[1672929804441,57.35,13.087,13.08,1.06668545]
[1672929804774,17.0,13.086,13.08,1.06668545]
[1672929805097,20.0,13.084,13.08,1.06668545]
[1672929805399,57.37,13.083,13.08,1.06668545]
[1672929805614,77.37,13.084,13.08,1.06668545]
[1672929806445,20.0,13.084,13.08,1.06668545]
[1672929806660,57.36,13.085,13.08,1.06668545]
[1672929807098,57.36,13.086,13.08,1.06668545]
[1672929807295,17.0,13.085,13.08,1.06668545]
[1672929807503,37.0,13.085,13.08,1.06668545]
[1672929807710,17.0,13.085,13.08,1.06668545]
[1672929808870,135.53787149,13.087,13.08,1.06668545]
[1672929809382,17.0,13.086,13.08,1.06668545]
[1672929809913,37.0,13.086,13.08,1.06668545]
[1672929810126,20.0,13.085,13.08,1.06668545]
[1672929810337,17.0,13.084,13.08,1.06668545]
[1672929810757,57.37,13.083,13.08,1.06668545]
[1672929811182,57.37,13.084,13.08,1.06668545]
[1672929811391,20.0,13.082,13.074,59.6460381]
[1672929812876,37.0,13.083,13.074,59.6460381]
[1672929813097,37.0,13.083,13.074,59.1460381]
[1672929814032,59.41737149,13.083,13.074,59.1460381]
[1672929814228,20.0,13.081,13.074,59.1460381]
[1672929814436,17.0,13.08,13.074,59.1460381]
[1672929816662,20.0,13.083,13.074,59.1460381]
[1672929818033,20.0,13.081,13.074,59.1460381]
[1672929818237,17.0,13.08,13.074,59.1460381]
[1672929818643,20.0,13.083,13.074,59.1460381]
[1672929821502,17.0,13.082,13.074,59.1460381]
[1672929823080,77.36,13.085,13.074,59.1460381]
[1672929823280,57.36,13.086,13.074,59.1460381]
[1672929823486,57.35,13.088,13.074,59.1460381]
[1672929823901,20.0,13.086,13.074,59.1460381]
[1672929824755,20.0,13.084,13.074,59.1460381]
[1672929824948,17.0,13.083,13.074,59.1460381]
[1672929826431,39.41737149,13.083,13.074,59.1460381]
[1672929826751,20.0,13.082,13.074,59.1460381]
[1672929827074,17.0,13.081,13.074,59.1460381]
[1672929827273,13.28,13.08,13.074,59.1460381]
[1672929827478,74.39,13.079,13.074,59.1460381]
[1672929827688,74.39,13.079,13.074,3.81e-05]
[1672929827912,114.5241,13.078,13.074,3.81e-05]
[1672929828120,17.0,13.077,13.074,3.81e-05]
[1672929828743,134.5241,13.078,13.074,3.81e-05]
[1672929829164,20.0,13.078,13.074,3.81e-05]
[1672929830125,17.0,13.077,13.074,3.81e-05]
[1672929830325,20.0,13.078,13.074,3.81e-05]
[1672929831493,20.0,13.08,13.074,3.81e-05]
[1672929831797,20.0,13.081,13.074,3.81e-05]
[1672929832847,42.41737149,13.081,13.074,3.81e-05]
[1672929833057,87.68,13.08,13.074,3.81e-05]
[1672929833471,110.09737149,13.08,13.074,3.81e-05]
[1672929833676,20.0,13.079,13.074,3.81e-05]
[1672929833905,74.39,13.078,13.074,3.81e-05]
[1672929834098,20.0,13.077,13.074,3.81e-05]
[1672929834309,17.0,13.076,13.074,3.81e-05]
[1672929834633,20.0,13.075,13.074,3.81e-05]
[1672929834844,37.0,13.075,13.074,3.81e-05]
[1672929836005,57.39,13.078,13.074,3.81e-05]
[1672929836191,20.0,13.079,13.074,3.81e-05]
[1672929837039,77.38,13.081,13.074,3.81e-05]
[1672929837040,57.38,13.081,13.074,3.81e-05]
[1672929837276,172.5817,13.083,13.074,3.81e-05]
[1672929837498,115.2117,13.083,13.074,3.81e-05]
[1672929837713,20.0,13.082,13.074,3.81e-05]
[1672929840556,17.0,13.081,13.074,3.81e-05]
[1672929840742,20.0,13.08,13.074,3.81e-05]
[1672929840954,17.0,13.079,13.074,3.81e-05]
[1672929841173,57.39,13.078,13.074,3.81e-05]
[1672929841579,20.0,13.076,13.074,3.81e-05]
[1672929842017,42.41737149,13.076,13.074,3.81e-05]
[1672929842341,20.0,13.076,13.074,3.81e-05]
[1672929844754,17.0,13.077,13.074,3.81e-05]
[1672929844940,20.0,13.08,13.074,3.81e-05]
[1672929845487,55.71737149,13.08,13.074,3.81e-05]
[1672929845695,57.39,13.079,13.074,3.81e-05]
[1672929846117,20.0,13.077,13.074,3.81e-05]
[1672929846534,20.0,13.075,13.074,3.81e-05]
[1672929846860,37.0,13.075,13.074,3.81e-05]
[1672929847265,59.41737149,13.075,13.074,3.81e-05]
[1672929847601,20.0,13.074,13.058,3.197]
[1672929847790,57.42,13.073,13.058,3.197]
[1672929848001,79.83737149,13.073,13.058,3.197]
[1672929848328,57.42,13.073,13.058,3.197]
[1672929848639,20.0,13.074,13.058,3.197]
[1672929848640,131.7021,13.074,13.058,23.197]
[1672929848858,66.3,13.07,13.057,199.3330852]
[1672929849046,57.43,13.069,13.057,199.3330852]
[1672929849262,207.39245481,13.069,13.057,199.3330852]
[1672929849467,167.27396502,13.068,13.057,199.3330852]
[1672929849680,77.44,13.067,13.057,199.3330852]
[1672929849894,202.14336219,13.067,13.057,199.3330852]
[1672929850104,20.0,13.065,13.05,75.7994933]
[1672929850317,66.39,13.06,13.05,75.7994933]
[1672929850536,20.0,13.058,13.05,75.7994933]
[1672929850859,48.35821722,13.059,13.05,75.7994933]
[1672929851254,57.45,13.064,13.051,20.0]
[1672929851464,20.0,13.065,13.051,20.0]
[1672929851673,22.41737149,13.063,13.051,20.0]
[1672929851991,20.0,13.065,13.051,20.0]
[1672929852199,22.41737149,13.064,13.051,20.0]
[1672929852404,20.0,13.065,13.051,20.0]
[1672929853166,42.41737149,13.065,13.051,20.0]
[1672929853903,20.0,13.069,13.051,20.0]
[1672929854209,342.74490121,13.088,13.051,20.0]
[1672929854210,20.0,13.074,13.052,22.41737149]
[1672929854418,20.0,13.074,13.053,156.9515]
[1672929854633,20.0,13.074,13.054,20.0]
[1672929854828,22.41737149,13.073,13.055,131.0903]
[1672929855257,22.41737149,13.073,13.056,20.0]
[1672929855460,22.41737149,13.073,13.057,20.0]
[1672929855673,22.41737149,13.073,13.057,135.235175]
[1672929855920,22.41737149,13.073,13.058,20.0]
[1672929856097,57.41,13.074,13.058,20.0]
[1672929856302,57.4,13.076,13.058,20.0]
[1672929856519,22.41737149,13.075,13.059,20.0]
[1672929856719,57.4,13.077,13.06,20.0]
[1672929856925,86.64,13.08,13.06,20.0]
[1672929856926,22.41737149,13.078,13.061,17.0]
[1672929857141,57.35,13.088,13.061,17.0]
[1672929857357,57.35,13.088,13.062,20.0]
[1672929857571,22.41737149,13.085,13.063,37.0]
[1672929857898,57.37,13.084,13.063,133.83771809]
[1672929858109,57.37,13.084,13.064,42.41737149]
[1672929858301,57.37,13.084,13.065,17.0]
[1672929858512,57.37,13.084,13.067,20.0]
[1672929858711,57.37,13.084,13.068,20.0]
[1672929858931,22.41737149,13.084,13.068,20.0]
[1672929859469,22.41737149,13.084,13.069,20.0]
[1672929859680,79.78737149,13.084,13.07,20.0]
[1672929861025,17.0,13.083,13.07,20.0]
[1672929861238,22.41737149,13.084,13.07,20.0]
[1672929861455,57.35,13.087,13.071,42.41737149]
[1672929861656,57.35,13.088,13.072,20.0]
[1672929861875,57.35,13.088,13.072,42.41737149]
[1672929862191,22.41737149,13.087,13.072,20.0]
[1672929862405,20.0,13.085,13.072,20.0]
[1672929862613,20.0,13.085,13.073,20.0]
[1672929863461,79.76737149,13.087,13.073,20.0]
[1672929863675,57.35,13.087,13.073,42.41737149]
[1672929863889,57.35,13.088,13.073,116.83771809]
[1672929864394,70.71,13.09,13.075,20.0]
[1672929864608,13.37,13.09,13.076,20.0]
[1672929864818,13.37,13.09,13.076,42.41737149]
[1672929865029,57.32,13.094,13.077,22.41737149]
[1672929865349,57.31,13.096,13.08,13.3]
[1672929865562,77.31,13.098,13.081,40.0]
[1672929865778,77.31,13.098,13.081,136.83771809]
[1672929865971,99.72737149,13.098,13.081,136.83771809]
[1672929866182,20.0,13.097,13.081,136.83771809]
[1672929866723,20.0,13.097,13.082,22.41737149]
[1672929866918,20.0,13.097,13.083,20.0]
[1672929867140,57.31,13.098,13.084,20.0]
[1672929867957,57.31,13.098,13.084,94.4203466]
[1672929868396,79.72737149,13.098,13.084,94.4203466]
[1672929868599,79.72737149,13.098,13.084,74.4203466]
[1672929869435,17.0,13.097,13.084,74.4203466]
[1672929869642,37.0,13.097,13.084,74.4203466]
[1672929869853,22.41737149,13.096,13.084,74.4203466]
[1672929870074,57.3,13.099,13.085,20.0]
[1672929870284,70.53,13.1,13.086,20.0]
[1672929870499,70.53,13.1,13.087,20.0]
[1672929871348,95.16285736,13.099,13.087,20.0]
[1672929871874,95.16285736,13.099,13.088,20.0]
[1672929872061,95.16285736,13.099,13.089,20.0]
[1672929873115,13.23,13.1,13.089,20.0]
[1672929873960,13.23,13.1,13.089,94.4203466]
[1672929874165,57.28,13.103,13.089,94.4203466]
[1672929874382,57.28,13.103,13.09,20.0]
[1672929874593,57.28,13.104,13.091,20.0]
[1672929875141,17.0,13.103,13.091,20.0]
[1672929875344,57.29,13.102,13.091,20.0]
[1672929875559,17.0,13.101,13.091,20.0]
[1672929875980,17.0,13.101,13.092,20.0]
[1672929876212,17.0,13.101,13.093,20.0]
[1672929876594,57.28,13.104,13.093,20.0]
[1672929877023,57.27,13.105,13.093,20.0]
[1672929877879,57.27,13.105,13.093,94.4203466]
[1672929878062,17.0,13.104,13.093,94.4203466]
[1672929878275,57.28,13.103,13.093,94.4203466]
[1672929878601,17.0,13.102,13.093,94.4203466]
[1672929879869,57.28,13.103,13.093,94.4203466]
[1672929880074,22.41737149,13.104,13.093,94.4203466]
[1672929880283,20.0,13.103,13.093,94.4203466]
[1672929880501,13.3,13.1,13.093,74.4203466]
[1672929880693,57.3,13.099,13.093,53.5470466]
[1672929880898,20.0,13.098,13.093,53.5470466]
[1672929881108,74.31,13.097,13.093,23.0029466]
[1672929881322,20.0,13.096,13.072,20.0]
[1672929881552,13.3,13.09,13.079,20.0]
[1672929881959,17.0,13.089,13.08,37.04]
[1672929882170,13.3,13.09,13.081,20.0]
[1672929882390,13.3,13.09,13.083,20.0]
[1672929882809,57.32,13.095,13.084,20.0]
[1672929883015,57.31,13.097,13.085,20.0]
[1672929883338,57.31,13.098,13.085,20.0]
[1672929884165,20.0,13.097,13.085,20.0]
[1672929884375,57.31,13.096,13.084,20.0]
[1672929884590,13.18,13.09,13.084,20.0]
[1672929884917,17.0,13.089,13.084,20.0]
[1672929885113,17.0,13.089,13.08,20.0]
[1672929885539,13.18,13.09,13.08,20.0]
[1672929886361,13.18,13.09,13.081,20.0]
[1672929886576,57.31,13.096,13.082,20.0]
[1672929886797,57.31,13.098,13.082,20.0]
[1672929887011,57.31,13.098,13.083,17.0]
[1672929887217,57.3,13.099,13.084,40.0]
[1672929888153,20.0,13.098,13.084,40.0]
[1672929888688,57.3,13.099,13.085,22.41737149]
[1672929888895,13.38,13.1,13.086,37.0]
[1672929889220,13.38,13.1,13.087,20.0]
[1672929889418,13.38,13.1,13.089,20.0]
[1672929889622,13.38,13.1,13.09,20.0]
[1672929890055,79.69737149,13.103,13.091,20.0]
[1672929890266,57.27,13.107,13.092,20.0]
[1672929890465,22.41737149,13.105,13.092,20.0]
[1672929890676,57.28,13.104,13.092,20.0]
[1672929891225,20.0,13.103,13.092,20.0]
[1672929891629,20.0,13.103,13.091,20.0]
[1672929891849,20.0,13.103,13.092,20.0]
[1672929892043,20.0,13.103,13.091,20.0]
[1672929892253,17.0,13.102,13.091,20.0]
[1672929896576,42.41737149,13.104,13.091,20.0]
[1672929896779,22.41737149,13.104,13.091,20.0]
[1672929896991,57.27,13.105,13.092,20.0]
[1672929897312,22.41737149,13.107,13.092,20.0]
[1672929897529,57.27,13.106,13.092,20.0]
[1672929898055,22.41737149,13.107,13.092,20.0]
[1672929898880,57.26,13.109,13.092,20.0]
[1672929899953,20.0,13.107,13.092,20.0]
[1672929900160,74.27,13.106,13.092,20.0]
[1672929900368,17.0,13.106,13.093,20.0]
[1672929900574,57.27,13.105,13.093,20.0]
[1672929900890,17.0,13.104,13.077,20.0]
[1672929901123,97.28,13.103,13.077,20.0]
[1672929901304,141.49526099,13.103,13.078,129.7303]
[1672929901520,185.44,13.1,13.078,129.7303]
[1672929901734,74.3,13.099,13.078,129.7303]
[1672929901939,20.0,13.098,13.078,129.7303]
[1672929902154,74.31,13.097,13.078,129.7303]
[1672929902360,17.0,13.097,13.078,129.7303]
[1672929902899,20.0,13.095,13.08,20.0]
[1672929903092,17.0,13.094,13.08,20.0]
[1672929903512,57.31,13.097,13.08,20.0]
[1672929903733,17.0,13.096,13.08,42.41737149]
[1672929903950,20.0,13.095,13.08,42.41737149]
[1672929904159,17.0,13.094,13.08,20.0]
[1672929904368,17.0,13.094,13.081,20.0]
[1672929906147,74.32,13.094,13.081,20.0]
[1672929906362,20.0,13.093,13.079,20.0]
[1672929906565,17.0,13.092,13.079,20.0]
[1672929907194,17.0,13.092,13.08,20.0]